{"text_format":"1","workbook":"xlsx","n_sheets":4,"sheets":["Методика первичной диагностики","Результаты","Печать","Печать с пояснениями"],"not_rendered":{"charts":0,"images":1,"macros":1,"external_links":0,"defined_names":0,"comments":0,"pivot_tables":0},"unopened":[],"bounds":{"document_bytes":16777216,"sheet_cells":100000,"rows_first":2000,"rows_last":500,"rows_between":2000,"halvings":0,"cell_chars":16384,"cell_head_chars":4096},"cells_cut":0,"cells_raw":0,"read":"whole","date_system":"1900"}

{"sheet":"Методика первичной диагностики","index":0,"n_rows":82,"n_cols":34,"rows_kept":82,"cut":false,"hidden":false,"merged":[[3,0,6,15],[8,14,8,15],[9,14,9,15],[10,14,10,15],[1,0,1,2],[1,3,1,8],[1,10,1,11],[1,12,1,15],[12,1,12,13],[13,1,13,13],[14,1,14,13],[15,1,15,13],[16,1,16,13],[17,1,17,13],[8,1,8,13],[9,1,9,13],[10,1,10,13],[11,1,11,13],[24,1,24,13],[25,1,25,13],[26,1,26,13],[27,1,27,13],[28,1,28,13],[29,1,29,13],[18,1,18,13],[19,1,19,13],[20,1,20,13],[21,1,21,13],[22,1,22,13],[23,1,23,13],[36,1,36,13],[37,1,37,13],[38,1,38,13],[39,1,39,13],[40,1,40,13],[41,1,41,13],[30,1,30,13],[31,1,31,13],[32,1,32,13],[33,1,33,13],[34,1,34,13],[35,1,35,13],[51,1,51,13],[52,1,52,13],[53,1,53,13],[42,1,42,13],[43,1,43,13],[44,1,44,13],[45,1,45,13],[46,1,46,13],[47,1,47,13],[11,14,11,15],[12,14,12,15],[13,14,13,15],[14,14,14,15],[15,14,15,15],[16,14,16,15],[66,1,66,13],[67,1,67,13],[68,1,68,13],[60,1,60,13],[61,1,61,13],[62,1,62,13],[63,1,63,13],[64,1,64,13],[65,1,65,13],[54,1,54,13],[55,1,55,13],[56,1,56,13],[57,1,57,13],[58,1,58,13],[59,1,59,13],[48,1,48,13],[49,1,49,13],[50,1,50,13],[23,14,23,15],[24,14,24,15],[25,14,25,15],[26,14,26,15],[27,14,27,15],[28,14,28,15],[17,14,17,15],[18,14,18,15],[19,14,19,15],[20,14,20,15],[21,14,21,15],[22,14,22,15],[35,14,35,15],[36,14,36,15],[37,14,37,15],[38,14,38,15],[39,14,39,15],[40,14,40,15],[29,14,29,15],[30,14,30,15],[31,14,31,15],[32,14,32,15],[33,14,33,15],[34,14,34,15],[47,14,47,15],[48,14,48,15],[49,14,49,15],[50,14,50,15],[51,14,51,15],[52,14,52,15],[41,14,41,15],[42,14,42,15],[43,14,43,15],[44,14,44,15],[45,14,45,15],[46,14,46,15],[59,14,59,15],[60,14,60,15],[61,14,61,15],[62,14,62,15],[63,14,63,15],[64,14,64,15],[53,14,53,15],[54,14,54,15],[55,14,55,15],[56,14,56,15],[57,14,57,15],[58,14,58,15],[78,1,78,13],[78,14,78,15],[79,1,79,13],[79,14,79,15],[80,1,80,13],[81,1,81,13],[80,14,80,15],[81,14,81,15],[75,1,75,13],[75,14,75,15],[76,1,76,13],[76,14,76,15],[77,1,77,13],[77,14,77,15],[71,14,71,15],[72,1,72,13],[72,14,72,15],[73,1,73,13],[73,14,73,15],[74,1,74,13],[74,14,74,15],[65,14,65,15],[66,14,66,15],[67,14,67,15],[68,14,68,15],[69,14,69,15],[70,14,70,15],[69,1,69,13],[70,1,70,13],[71,1,71,13]]}
[null,null,null,null,null,null,null,null,null,null,null,null,null,null,null,null,null,null,null,null,null,null,null,null,null,null,null,null,null,null,null,null,10,"5 А"]
["Фамилия, имя",null,null,null,null,null,null,null,null,null,"Класс",null,null,null,null,null,null,null,null,null,null,null,null,null,null,null,null,null,null,null,null,null,11,"5 Б"]
[null,null,null,null,null,null,null,null,null,null,null,null,null,null,null,null,null,null,null,null,null,null,null,null,null,null,null,null,null,null,null,null,13]
["Вам предлагается ряд вопросов, косающихся различных сторон Вашей жизни и особенностей Вашего поведения! Если Вы честно и обдуманно ответите на каждый вопрос, у Вас будет возможность лучше узнать самого себя. Отвечайте на каждый вопрос следующим образом: если согласны, отвечайте \"+\", если не согласны - \"-\".",null,null,null,null,null,null,null,null,null,null,null,null,null,null,null,null,null,null,null,null,null,null,null,null,null,null,null,null,null,null,"Мальчик",14]
[null,null,null,null,null,null,null,null,null,null,null,null,null,null,null,null,null,null,null,null,null,null,null,null,null,null,null,null,null,null,null,"Девочка",15]
[null,null,null,null,null,null,null,null,null,null,null,null,null,null,null,null,null,null,null,null,null,null,null,null,null,null,null,null,null,null,null,null,16]
[null,null,null,null,null,null,null,null,null,null,null,null,null,null,null,null,null,null,null,null,null,null,null,"+"]
[null,null,null,null,null,null,null,null,null,null,null,null,null,null,null,null,null,null,null,null,null,null,null,"-"]
[1,"Считаешь ли ты, что людям можно доверять?"]
[2,"Думаешь ли ты, что единственный способ достичь чего-то в жизни - это заботиться прежде всего о себе?","Думаешь ли ты, что единственный способ достичь чего-то в жизни - это заботиться прежде всего о себе?","Думаешь ли ты, что единственный способ достичь чего-то в жизни - это заботиться прежде всего о себе?","Думаешь ли ты, что единственный способ достичь чего-то в жизни - это заботиться прежде всего о себе?","Думаешь ли ты, что единственный способ достичь чего-то в жизни - это заботиться прежде всего о себе?","Думаешь ли ты, что единственный способ достичь чего-то в жизни - это заботиться прежде всего о себе?","Думаешь ли ты, что единственный способ достичь чего-то в жизни - это заботиться прежде всего о себе?","Думаешь ли ты, что единственный способ достичь чего-то в жизни - это заботиться прежде всего о себе?","Думаешь ли ты, что единственный способ достичь чего-то в жизни - это заботиться прежде всего о себе?","Думаешь ли ты, что единственный способ достичь чего-то в жизни - это заботиться прежде всего о себе?","Думаешь ли ты, что единственный способ достичь чего-то в жизни - это заботиться прежде всего о себе?","Думаешь ли ты, что единственный способ достичь чего-то в жизни - это заботиться прежде всего о себе?","Думаешь ли ты, что единственный способ достичь чего-то в жизни - это заботиться прежде всего о себе?"]
[3,"Легко ли ты заводишь друзей?","Легко ли ты заводишь друзей?","Легко ли ты заводишь друзей?","Легко ли ты заводишь друзей?","Легко ли ты заводишь друзей?","Легко ли ты заводишь друзей?","Легко ли ты заводишь друзей?","Легко ли ты заводишь друзей?","Легко ли ты заводишь друзей?","Легко ли ты заводишь друзей?","Легко ли ты заводишь друзей?","Легко ли ты заводишь друзей?","Легко ли ты заводишь друзей?"]
[4,"Трудно ли тебе говорить людям \"нет\"?","Трудно ли тебе говорить людям \"нет\"?","Трудно ли тебе говорить людям \"нет\"?","Трудно ли тебе говорить людям \"нет\"?","Трудно ли тебе говорить людям \"нет\"?","Трудно ли тебе говорить людям \"нет\"?","Трудно ли тебе говорить людям \"нет\"?","Трудно ли тебе говорить людям \"нет\"?","Трудно ли тебе говорить людям \"нет\"?","Трудно ли тебе говорить людям \"нет\"?","Трудно ли тебе говорить людям \"нет\"?","Трудно ли тебе говорить людям \"нет\"?","Трудно ли тебе говорить людям \"нет\"?"]
[5,"Часто ли кто-нибудь из родителей насправедливо критикует тебя?","Часто ли кто-нибудь из родителей насправедливо критикует тебя?","Часто ли кто-нибудь из родителей насправедливо критикует тебя?","Часто ли кто-нибудь из родителей насправедливо критикует тебя?","Часто ли кто-нибудь из родителей насправедливо критикует тебя?","Часто ли кто-нибудь из родителей насправедливо критикует тебя?","Часто ли кто-нибудь из родителей насправедливо критикует тебя?","Часто ли кто-нибудь из родителей насправедливо критикует тебя?","Часто ли кто-нибудь из родителей насправедливо критикует тебя?","Часто ли кто-нибудь из родителей насправедливо критикует тебя?","Часто ли кто-нибудь из родителей насправедливо критикует тебя?","Часто ли кто-нибудь из родителей насправедливо критикует тебя?","Часто ли кто-нибудь из родителей насправедливо критикует тебя?"]
[6,"Бывает ли так, что твои родители возражают против твоих друзей, с которыми ты встречаешься?","Бывает ли так, что твои родители возражают против твоих друзей, с которыми ты встречаешься?","Бывает ли так, что твои родители возражают против твоих друзей, с которыми ты встречаешься?","Бывает ли так, что твои родители возражают против твоих друзей, с которыми ты встречаешься?","Бывает ли так, что твои родители возражают против твоих друзей, с которыми ты встречаешься?","Бывает ли так, что твои родители возражают против твоих друзей, с которыми ты встречаешься?","Бывает ли так, что твои родители возражают против твоих друзей, с которыми ты встречаешься?","Бывает ли так, что твои родители возражают против твоих друзей, с которыми ты встречаешься?","Бывает ли так, что твои родители возражают против твоих друзей, с которыми ты встречаешься?","Бывает ли так, что твои родители возражают против твоих друзей, с которыми ты встречаешься?","Бывает ли так, что твои родители возражают против твоих друзей, с которыми ты встречаешься?","Бывает ли так, что твои родители возражают против твоих друзей, с которыми ты встречаешься?","Бывает ли так, что твои родители возражают против твоих друзей, с которыми ты встречаешься?"]
[7,"Часто ли ты нервничаешь?","Часто ли ты нервничаешь?","Часто ли ты нервничаешь?","Часто ли ты нервничаешь?","Часто ли ты нервничаешь?","Часто ли ты нервничаешь?","Часто ли ты нервничаешь?","Часто ли ты нервничаешь?","Часто ли ты нервничаешь?","Часто ли ты нервничаешь?","Часто ли ты нервничаешь?","Часто ли ты нервничаешь?","Часто ли ты нервничаешь?"]
[8,"Бывают ли у тебя беспричинные колебания настроения?","Бывают ли у тебя беспричинные колебания настроения?","Бывают ли у тебя беспричинные колебания настроения?","Бывают ли у тебя беспричинные колебания настроения?","Бывают ли у тебя беспричинные колебания настроения?","Бывают ли у тебя беспричинные колебания настроения?","Бывают ли у тебя беспричинные колебания настроения?","Бывают ли у тебя беспричинные колебания настроения?","Бывают ли у тебя беспричинные колебания настроения?","Бывают ли у тебя беспричинные колебания настроения?","Бывают ли у тебя беспричинные колебания настроения?","Бывают ли у тебя беспричинные колебания настроения?","Бывают ли у тебя беспричинные колебания настроения?"]
[9,"Являешься ли ты обычно центром внимания в компании сверстников?","Являешься ли ты обычно центром внимания в компании сверстников?","Являешься ли ты обычно центром внимания в компании сверстников?","Являешься ли ты обычно центром внимания в компании сверстников?","Являешься ли ты обычно центром внимания в компании сверстников?","Являешься ли ты обычно центром внимания в компании сверстников?","Являешься ли ты обычно центром внимания в компании сверстников?","Являешься ли ты обычно центром внимания в компании сверстников?","Являешься ли ты обычно центром внимания в компании сверстников?","Являешься ли ты обычно центром внимания в компании сверстников?","Являешься ли ты обычно центром внимания в компании сверстников?","Являешься ли ты обычно центром внимания в компании сверстников?","Являешься ли ты обычно центром внимания в компании сверстников?"]
[10,"Можешь ли ты быть приветливым даже с теми, кого явно не любишь?","Можешь ли ты быть приветливым даже с теми, кого явно не любишь?","Можешь ли ты быть приветливым даже с теми, кого явно не любишь?","Можешь ли ты быть приветливым даже с теми, кого явно не любишь?","Можешь ли ты быть приветливым даже с теми, кого явно не любишь?","Можешь ли ты быть приветливым даже с теми, кого явно не любишь?","Можешь ли ты быть приветливым даже с теми, кого явно не любишь?","Можешь ли ты быть приветливым даже с теми, кого явно не любишь?","Можешь ли ты быть приветливым даже с теми, кого явно не любишь?","Можешь ли ты быть приветливым даже с теми, кого явно не любишь?","Можешь ли ты быть приветливым даже с теми, кого явно не любишь?","Можешь ли ты быть приветливым даже с теми, кого явно не любишь?","Можешь ли ты быть приветливым даже с теми, кого явно не любишь?"]
[11,"Ты не любишь, когда тебя критикуют?","Ты не любишь, когда тебя критикуют?","Ты не любишь, когда тебя критикуют?","Ты не любишь, когда тебя критикуют?","Ты не любишь, когда тебя критикуют?","Ты не любишь, когда тебя критикуют?","Ты не любишь, когда тебя критикуют?","Ты не любишь, когда тебя критикуют?","Ты не любишь, когда тебя критикуют?","Ты не любишь, когда тебя критикуют?","Ты не любишь, когда тебя критикуют?","Ты не любишь, когда тебя критикуют?","Ты не любишь, когда тебя критикуют?"]
[12,"Можешь ли ты быть откровенным с близкими друзьями?","Можешь ли ты быть откровенным с близкими друзьями?","Можешь ли ты быть откровенным с близкими друзьями?","Можешь ли ты быть откровенным с близкими друзьями?","Можешь ли ты быть откровенным с близкими друзьями?","Можешь ли ты быть откровенным с близкими друзьями?","Можешь ли ты быть откровенным с близкими друзьями?","Можешь ли ты быть откровенным с близкими друзьями?","Можешь ли ты быть откровенным с близкими друзьями?","Можешь ли ты быть откровенным с близкими друзьями?","Можешь ли ты быть откровенным с близкими друзьями?","Можешь ли ты быть откровенным с близкими друзьями?","Можешь ли ты быть откровенным с близкими друзьями?"]
[13,"Раздражаешься ли ты иногда настолько, что начинаешь кидаться предметами?","Раздражаешься ли ты иногда настолько, что начинаешь кидаться предметами?","Раздражаешься ли ты иногда настолько, что начинаешь кидаться предметами?","Раздражаешься ли ты иногда настолько, что начинаешь кидаться предметами?","Раздражаешься ли ты иногда настолько, что начинаешь кидаться предметами?","Раздражаешься ли ты иногда настолько, что начинаешь кидаться предметами?","Раздражаешься ли ты иногда настолько, что начинаешь кидаться предметами?","Раздражаешься ли ты иногда настолько, что начинаешь кидаться предметами?","Раздражаешься ли ты иногда настолько, что начинаешь кидаться предметами?","Раздражаешься ли ты иногда настолько, что начинаешь кидаться предметами?","Раздражаешься ли ты иногда настолько, что начинаешь кидаться предметами?","Раздражаешься ли ты иногда настолько, что начинаешь кидаться предметами?","Раздражаешься ли ты иногда настолько, что начинаешь кидаться предметами?"]
[14,"Способен ли ты на грубые шутки?","Способен ли ты на грубые шутки?","Способен ли ты на грубые шутки?","Способен ли ты на грубые шутки?","Способен ли ты на грубые шутки?","Способен ли ты на грубые шутки?","Способен ли ты на грубые шутки?","Способен ли ты на грубые шутки?","Способен ли ты на грубые шутки?","Способен ли ты на грубые шутки?","Способен ли ты на грубые шутки?","Способен ли ты на грубые шутки?","Способен ли ты на грубые шутки?"]
[15,"Часто ли у тебя возникает чувство, что тебя не понимают?","Часто ли у тебя возникает чувство, что тебя не понимают?","Часто ли у тебя возникает чувство, что тебя не понимают?","Часто ли у тебя возникает чувство, что тебя не понимают?","Часто ли у тебя возникает чувство, что тебя не понимают?","Часто ли у тебя возникает чувство, что тебя не понимают?","Часто ли у тебя возникает чувство, что тебя не понимают?","Часто ли у тебя возникает чувство, что тебя не понимают?","Часто ли у тебя возникает чувство, что тебя не понимают?","Часто ли у тебя возникает чувство, что тебя не понимают?","Часто ли у тебя возникает чувство, что тебя не понимают?","Часто ли у тебя возникает чувство, что тебя не понимают?","Часто ли у тебя возникает чувство, что тебя не понимают?"]
[16,"Бывает ли у тебя чувство, что за твоей спиной люди говорят о тебе плохо?","Бывает ли у тебя чувство, что за твоей спиной люди говорят о тебе плохо?","Бывает ли у тебя чувство, что за твоей спиной люди говорят о тебе плохо?","Бывает ли у тебя чувство, что за твоей спиной люди говорят о тебе плохо?","Бывает ли у тебя чувство, что за твоей спиной люди говорят о тебе плохо?","Бывает ли у тебя чувство, что за твоей спиной люди говорят о тебе плохо?","Бывает ли у тебя чувство, что за твоей спиной люди говорят о тебе плохо?","Бывает ли у тебя чувство, что за твоей спиной люди говорят о тебе плохо?","Бывает ли у тебя чувство, что за твоей спиной люди говорят о тебе плохо?","Бывает ли у тебя чувство, что за твоей спиной люди говорят о тебе плохо?","Бывает ли у тебя чувство, что за твоей спиной люди говорят о тебе плохо?","Бывает ли у тебя чувство, что за твоей спиной люди говорят о тебе плохо?","Бывает ли у тебя чувство, что за твоей спиной люди говорят о тебе плохо?"]
[17,"Много ли у тебя близких друзей?","Много ли у тебя близких друзей?","Много ли у тебя близких друзей?","Много ли у тебя близких друзей?","Много ли у тебя близких друзей?","Много ли у тебя близких друзей?","Много ли у тебя близких друзей?","Много ли у тебя близких друзей?","Много ли у тебя близких друзей?","Много ли у тебя близких друзей?","Много ли у тебя близких друзей?","Много ли у тебя близких друзей?","Много ли у тебя близких друзей?"]
[18,"Стесняешься ли ты обращаться к людям за помощью?","Стесняешься ли ты обращаться к людям за помощью?","Стесняешься ли ты обращаться к людям за помощью?","Стесняешься ли ты обращаться к людям за помощью?","Стесняешься ли ты обращаться к людям за помощью?","Стесняешься ли ты обращаться к людям за помощью?","Стесняешься ли ты обращаться к людям за помощью?","Стесняешься ли ты обращаться к людям за помощью?","Стесняешься ли ты обращаться к людям за помощью?","Стесняешься ли ты обращаться к людям за помощью?","Стесняешься ли ты обращаться к людям за помощью?","Стесняешься ли ты обращаться к людям за помощью?","Стесняешься ли ты обращаться к людям за помощью?"]
[19,"Нравится ли тебе нарушать установленные правила?","Нравится ли тебе нарушать установленные правила?","Нравится ли тебе нарушать установленные правила?","Нравится ли тебе нарушать установленные правила?","Нравится ли тебе нарушать установленные правила?","Нравится ли тебе нарушать установленные правила?","Нравится ли тебе нарушать установленные правила?","Нравится ли тебе нарушать установленные правила?","Нравится ли тебе нарушать установленные правила?","Нравится ли тебе нарушать установленные правила?","Нравится ли тебе нарушать установленные правила?","Нравится ли тебе нарушать установленные правила?","Нравится ли тебе нарушать установленные правила?"]
[20,"Бывает ли у тебя иногда желание причинять вред другим людям?","Бывает ли у тебя иногда желание причинять вред другим людям?","Бывает ли у тебя иногда желание причинять вред другим людям?","Бывает ли у тебя иногда желание причинять вред другим людям?","Бывает ли у тебя иногда желание причинять вред другим людям?","Бывает ли у тебя иногда желание причинять вред другим людям?","Бывает ли у тебя иногда желание причинять вред другим людям?","Бывает ли у тебя иногда желание причинять вред другим людям?","Бывает ли у тебя иногда желание причинять вред другим людям?","Бывает ли у тебя иногда желание причинять вред другим людям?","Бывает ли у тебя иногда желание причинять вред другим людям?","Бывает ли у тебя иногда желание причинять вред другим людям?","Бывает ли у тебя иногда желание причинять вред другим людям?"]
[21,"Раздражают ли тебя родители?","Раздражают ли тебя родители?","Раздражают ли тебя родители?","Раздражают ли тебя родители?","Раздражают ли тебя родители?","Раздражают ли тебя родители?","Раздражают ли тебя родители?","Раздражают ли тебя родители?","Раздражают ли тебя родители?","Раздражают ли тебя родители?","Раздражают ли тебя родители?","Раздражают ли тебя родители?","Раздражают ли тебя родители?"]
[22,"Всегда ли дома ты обеспечен всем жизненно необходимым?","Всегда ли дома ты обеспечен всем жизненно необходимым?","Всегда ли дома ты обеспечен всем жизненно необходимым?","Всегда ли дома ты обеспечен всем жизненно необходимым?","Всегда ли дома ты обеспечен всем жизненно необходимым?","Всегда ли дома ты обеспечен всем жизненно необходимым?","Всегда ли дома ты обеспечен всем жизненно необходимым?","Всегда ли дома ты обеспечен всем жизненно необходимым?","Всегда ли дома ты обеспечен всем жизненно необходимым?","Всегда ли дома ты обеспечен всем жизненно необходимым?","Всегда ли дома ты обеспечен всем жизненно необходимым?","Всегда ли дома ты обеспечен всем жизненно необходимым?","Всегда ли дома ты обеспечен всем жизненно необходимым?"]
[23,"Ты всегда уверен в себе?","Ты всегда уверен в себе?","Ты всегда уверен в себе?","Ты всегда уверен в себе?","Ты всегда уверен в себе?","Ты всегда уверен в себе?","Ты всегда уверен в себе?","Ты всегда уверен в себе?","Ты всегда уверен в себе?","Ты всегда уверен в себе?","Ты всегда уверен в себе?","Ты всегда уверен в себе?","Ты всегда уверен в себе?"]
[24,"Ты обычно вздрагиваешь при необычном звуке?","Ты обычно вздрагиваешь при необычном звуке?","Ты обычно вздрагиваешь при необычном звуке?","Ты обычно вздрагиваешь при необычном звуке?","Ты обычно вздрагиваешь при необычном звуке?","Ты обычно вздрагиваешь при необычном звуке?","Ты обычно вздрагиваешь при необычном звуке?","Ты обычно вздрагиваешь при необычном звуке?","Ты обычно вздрагиваешь при необычном звуке?","Ты обычно вздрагиваешь при необычном звуке?","Ты обычно вздрагиваешь при необычном звуке?","Ты обычно вздрагиваешь при необычном звуке?","Ты обычно вздрагиваешь при необычном звуке?"]
[25,"Кажется ли тебе, что твои родители тебя не понимают?","Кажется ли тебе, что твои родители тебя не понимают?","Кажется ли тебе, что твои родители тебя не понимают?","Кажется ли тебе, что твои родители тебя не понимают?","Кажется ли тебе, что твои родители тебя не понимают?","Кажется ли тебе, что твои родители тебя не понимают?","Кажется ли тебе, что твои родители тебя не понимают?","Кажется ли тебе, что твои родители тебя не понимают?","Кажется ли тебе, что твои родители тебя не понимают?","Кажется ли тебе, что твои родители тебя не понимают?","Кажется ли тебе, что твои родители тебя не понимают?","Кажется ли тебе, что твои родители тебя не понимают?","Кажется ли тебе, что твои родители тебя не понимают?"]
[26,"Свои неудачи ты переживаешь сам?","Свои неудачи ты переживаешь сам?","Свои неудачи ты переживаешь сам?","Свои неудачи ты переживаешь сам?","Свои неудачи ты переживаешь сам?","Свои неудачи ты переживаешь сам?","Свои неудачи ты переживаешь сам?","Свои неудачи ты переживаешь сам?","Свои неудачи ты переживаешь сам?","Свои неудачи ты переживаешь сам?","Свои неудачи ты переживаешь сам?","Свои неудачи ты переживаешь сам?","Свои неудачи ты переживаешь сам?"]
[27,"Бывает ли, что когда ты остаешься один, твое настроение улучшается?","Бывает ли, что когда ты остаешься один, твое настроение улучшается?","Бывает ли, что когда ты остаешься один, твое настроение улучшается?","Бывает ли, что когда ты остаешься один, твое настроение улучшается?","Бывает ли, что когда ты остаешься один, твое настроение улучшается?","Бывает ли, что когда ты остаешься один, твое настроение улучшается?","Бывает ли, что когда ты остаешься один, твое настроение улучшается?","Бывает ли, что когда ты остаешься один, твое настроение улучшается?","Бывает ли, что когда ты остаешься один, твое настроение улучшается?","Бывает ли, что когда ты остаешься один, твое настроение улучшается?","Бывает ли, что когда ты остаешься один, твое настроение улучшается?","Бывает ли, что когда ты остаешься один, твое настроение улучшается?","Бывает ли, что когда ты остаешься один, твое настроение улучшается?"]
[28,"Кажется ли тебе, что у твоих друзей более счастливая семья, чем у тебя?","Кажется ли тебе, что у твоих друзей более счастливая семья, чем у тебя?","Кажется ли тебе, что у твоих друзей более счастливая семья, чем у тебя?","Кажется ли тебе, что у твоих друзей более счастливая семья, чем у тебя?","Кажется ли тебе, что у твоих друзей более счастливая семья, чем у тебя?","Кажется ли тебе, что у твоих друзей более счастливая семья, чем у тебя?","Кажется ли тебе, что у твоих друзей более счастливая семья, чем у тебя?","Кажется ли тебе, что у твоих друзей более счастливая семья, чем у тебя?","Кажется ли тебе, что у твоих друзей более счастливая семья, чем у тебя?","Кажется ли тебе, что у твоих друзей более счастливая семья, чем у тебя?","Кажется ли тебе, что у твоих друзей более счастливая семья, чем у тебя?","Кажется ли тебе, что у твоих друзей более счастливая семья, чем у тебя?","Кажется ли тебе, что у твоих друзей более счастливая семья, чем у тебя?"]
[29,"Чувствуешь ли ты себя несчастным из-за недостатка денег в семье?","Чувствуешь ли ты себя несчастным из-за недостатка денег в семье?","Чувствуешь ли ты себя несчастным из-за недостатка денег в семье?","Чувствуешь ли ты себя несчастным из-за недостатка денег в семье?","Чувствуешь ли ты себя несчастным из-за недостатка денег в семье?","Чувствуешь ли ты себя несчастным из-за недостатка денег в семье?","Чувствуешь ли ты себя несчастным из-за недостатка денег в семье?","Чувствуешь ли ты себя несчастным из-за недостатка денег в семье?","Чувствуешь ли ты себя несчастным из-за недостатка денег в семье?","Чувствуешь ли ты себя несчастным из-за недостатка денег в семье?","Чувствуешь ли ты себя несчастным из-за недостатка денег в семье?","Чувствуешь ли ты себя несчастным из-за недостатка денег в семье?","Чувствуешь ли ты себя несчастным из-за недостатка денег в семье?"]
[30,"Бывает, что ты злишься на всех?","Бывает, что ты злишься на всех?","Бывает, что ты злишься на всех?","Бывает, что ты злишься на всех?","Бывает, что ты злишься на всех?","Бывает, что ты злишься на всех?","Бывает, что ты злишься на всех?","Бывает, что ты злишься на всех?","Бывает, что ты злишься на всех?","Бывает, что ты злишься на всех?","Бывает, что ты злишься на всех?","Бывает, что ты злишься на всех?","Бывает, что ты злишься на всех?"]
[31,"Часто ли ты чувствуешь себя беззащитным?","Часто ли ты чувствуешь себя беззащитным?","Часто ли ты чувствуешь себя беззащитным?","Часто ли ты чувствуешь себя беззащитным?","Часто ли ты чувствуешь себя беззащитным?","Часто ли ты чувствуешь себя беззащитным?","Часто ли ты чувствуешь себя беззащитным?","Часто ли ты чувствуешь себя беззащитным?","Часто ли ты чувствуешь себя беззащитным?","Часто ли ты чувствуешь себя беззащитным?","Часто ли ты чувствуешь себя беззащитным?","Часто ли ты чувствуешь себя беззащитным?","Часто ли ты чувствуешь себя беззащитным?"]
[32,"Легко ли ты осваиваешься в новом коллективе?","Легко ли ты осваиваешься в новом коллективе?","Легко ли ты осваиваешься в новом коллективе?","Легко ли ты осваиваешься в новом коллективе?","Легко ли ты осваиваешься в новом коллективе?","Легко ли ты осваиваешься в новом коллективе?","Легко ли ты осваиваешься в новом коллективе?","Легко ли ты осваиваешься в новом коллективе?","Легко ли ты осваиваешься в новом коллективе?","Легко ли ты осваиваешься в новом коллективе?","Легко ли ты осваиваешься в новом коллективе?","Легко ли ты осваиваешься в новом коллективе?","Легко ли ты осваиваешься в новом коллективе?"]
[33,"Трудно ли тебе отвечать в школе перед всем классом?","Трудно ли тебе отвечать в школе перед всем классом?","Трудно ли тебе отвечать в школе перед всем классом?","Трудно ли тебе отвечать в школе перед всем классом?","Трудно ли тебе отвечать в школе перед всем классом?","Трудно ли тебе отвечать в школе перед всем классом?","Трудно ли тебе отвечать в школе перед всем классом?","Трудно ли тебе отвечать в школе перед всем классом?","Трудно ли тебе отвечать в школе перед всем классом?","Трудно ли тебе отвечать в школе перед всем классом?","Трудно ли тебе отвечать в школе перед всем классом?","Трудно ли тебе отвечать в школе перед всем классом?","Трудно ли тебе отвечать в школе перед всем классом?"]
[34,"Есть ли у тебя знакомые, которых ты вообще не можешь переносить?","Есть ли у тебя знакомые, которых ты вообще не можешь переносить?","Есть ли у тебя знакомые, которых ты вообще не можешь переносить?","Есть ли у тебя знакомые, которых ты вообще не можешь переносить?","Есть ли у тебя знакомые, которых ты вообще не можешь переносить?","Есть ли у тебя знакомые, которых ты вообще не можешь переносить?","Есть ли у тебя знакомые, которых ты вообще не можешь переносить?","Есть ли у тебя знакомые, которых ты вообще не можешь переносить?","Есть ли у тебя знакомые, которых ты вообще не можешь переносить?","Есть ли у тебя знакомые, которых ты вообще не можешь переносить?","Есть ли у тебя знакомые, которых ты вообще не можешь переносить?","Есть ли у тебя знакомые, которых ты вообще не можешь переносить?","Есть ли у тебя знакомые, которых ты вообще не можешь переносить?"]
[35,"Можешь ли ты ударить человека?","Можешь ли ты ударить человека?","Можешь ли ты ударить человека?","Можешь ли ты ударить человека?","Можешь ли ты ударить человека?","Можешь ли ты ударить человека?","Можешь ли ты ударить человека?","Можешь ли ты ударить человека?","Можешь ли ты ударить человека?","Можешь ли ты ударить человека?","Можешь ли ты ударить человека?","Можешь ли ты ударить человека?","Можешь ли ты ударить человека?"]
[36,"Ты иногда угрожаешь людям?","Ты иногда угрожаешь людям?","Ты иногда угрожаешь людям?","Ты иногда угрожаешь людям?","Ты иногда угрожаешь людям?","Ты иногда угрожаешь людям?","Ты иногда угрожаешь людям?","Ты иногда угрожаешь людям?","Ты иногда угрожаешь людям?","Ты иногда угрожаешь людям?","Ты иногда угрожаешь людям?","Ты иногда угрожаешь людям?","Ты иногда угрожаешь людям?"]
[37,"Часто ли родители наказывали тебя?","Часто ли родители наказывали тебя?","Часто ли родители наказывали тебя?","Часто ли родители наказывали тебя?","Часто ли родители наказывали тебя?","Часто ли родители наказывали тебя?","Часто ли родители наказывали тебя?","Часто ли родители наказывали тебя?","Часто ли родители наказывали тебя?","Часто ли родители наказывали тебя?","Часто ли родители наказывали тебя?","Часто ли родители наказывали тебя?","Часто ли родители наказывали тебя?"]
[38,"Появлялось ли у тебя когда-нибудь сильное желание убежать из дома?","Появлялось ли у тебя когда-нибудь сильное желание убежать из дома?","Появлялось ли у тебя когда-нибудь сильное желание убежать из дома?","Появлялось ли у тебя когда-нибудь сильное желание убежать из дома?","Появлялось ли у тебя когда-нибудь сильное желание убежать из дома?","Появлялось ли у тебя когда-нибудь сильное желание убежать из дома?","Появлялось ли у тебя когда-нибудь сильное желание убежать из дома?","Появлялось ли у тебя когда-нибудь сильное желание убежать из дома?","Появлялось ли у тебя когда-нибудь сильное желание убежать из дома?","Появлялось ли у тебя когда-нибудь сильное желание убежать из дома?","Появлялось ли у тебя когда-нибудь сильное желание убежать из дома?","Появлялось ли у тебя когда-нибудь сильное желание убежать из дома?","Появлялось ли у тебя когда-нибудь сильное желание убежать из дома?"]
[39,"Думаешь ли ты, что твои родители часто обходятся с тобой как с ребенком?","Думаешь ли ты, что твои родители часто обходятся с тобой как с ребенком?","Думаешь ли ты, что твои родители часто обходятся с тобой как с ребенком?","Думаешь ли ты, что твои родители часто обходятся с тобой как с ребенком?","Думаешь ли ты, что твои родители часто обходятся с тобой как с ребенком?","Думаешь ли ты, что твои родители часто обходятся с тобой как с ребенком?","Думаешь ли ты, что твои родители часто обходятся с тобой как с ребенком?","Думаешь ли ты, что твои родители часто обходятся с тобой как с ребенком?","Думаешь ли ты, что твои родители часто обходятся с тобой как с ребенком?","Думаешь ли ты, что твои родители часто обходятся с тобой как с ребенком?","Думаешь ли ты, что твои родители часто обходятся с тобой как с ребенком?","Думаешь ли ты, что твои родители часто обходятся с тобой как с ребенком?","Думаешь ли ты, что твои родители часто обходятся с тобой как с ребенком?"]
[40,"Часто ли ты чувствуешь себя несчастным?","Часто ли ты чувствуешь себя несчастным?","Часто ли ты чувствуешь себя несчастным?","Часто ли ты чувствуешь себя несчастным?","Часто ли ты чувствуешь себя несчастным?","Часто ли ты чувствуешь себя несчастным?","Часто ли ты чувствуешь себя несчастным?","Часто ли ты чувствуешь себя несчастным?","Часто ли ты чувствуешь себя несчастным?","Часто ли ты чувствуешь себя несчастным?","Часто ли ты чувствуешь себя несчастным?","Часто ли ты чувствуешь себя несчастным?","Часто ли ты чувствуешь себя несчастным?"]
[41,"Легко ли ты можешь рассердиться?","Легко ли ты можешь рассердиться?","Легко ли ты можешь рассердиться?","Легко ли ты можешь рассердиться?","Легко ли ты можешь рассердиться?","Легко ли ты можешь рассердиться?","Легко ли ты можешь рассердиться?","Легко ли ты можешь рассердиться?","Легко ли ты можешь рассердиться?","Легко ли ты можешь рассердиться?","Легко ли ты можешь рассердиться?","Легко ли ты можешь рассердиться?","Легко ли ты можешь рассердиться?"]
[42,"Рискнул бы ты схватить за уздечку бегущую лошадь?","Рискнул бы ты схватить за уздечку бегущую лошадь?","Рискнул бы ты схватить за уздечку бегущую лошадь?","Рискнул бы ты схватить за уздечку бегущую лошадь?","Рискнул бы ты схватить за уздечку бегущую лошадь?","Рискнул бы ты схватить за уздечку бегущую лошадь?","Рискнул бы ты схватить за уздечку бегущую лошадь?","Рискнул бы ты схватить за уздечку бегущую лошадь?","Рискнул бы ты схватить за уздечку бегущую лошадь?","Рискнул бы ты схватить за уздечку бегущую лошадь?","Рискнул бы ты схватить за уздечку бегущую лошадь?","Рискнул бы ты схватить за уздечку бегущую лошадь?","Рискнул бы ты схватить за уздечку бегущую лошадь?"]
[43,"Считаешь ли ты, что есть много глупых моральных норм поведения?","Считаешь ли ты, что есть много глупых моральных норм поведения?","Считаешь ли ты, что есть много глупых моральных норм поведения?","Считаешь ли ты, что есть много глупых моральных норм поведения?","Считаешь ли ты, что есть много глупых моральных норм поведения?","Считаешь ли ты, что есть много глупых моральных норм поведения?","Считаешь ли ты, что есть много глупых моральных норм поведения?","Считаешь ли ты, что есть много глупых моральных норм поведения?","Считаешь ли ты, что есть много глупых моральных норм поведения?","Считаешь ли ты, что есть много глупых моральных норм поведения?","Считаешь ли ты, что есть много глупых моральных норм поведения?","Считаешь ли ты, что есть много глупых моральных норм поведения?","Считаешь ли ты, что есть много глупых моральных норм поведения?"]
[44,"Страдаешь ли ты от робости и застенчивости?","Страдаешь ли ты от робости и застенчивости?","Страдаешь ли ты от робости и застенчивости?","Страдаешь ли ты от робости и застенчивости?","Страдаешь ли ты от робости и застенчивости?","Страдаешь ли ты от робости и застенчивости?","Страдаешь ли ты от робости и застенчивости?","Страдаешь ли ты от робости и застенчивости?","Страдаешь ли ты от робости и застенчивости?","Страдаешь ли ты от робости и застенчивости?","Страдаешь ли ты от робости и застенчивости?","Страдаешь ли ты от робости и застенчивости?","Страдаешь ли ты от робости и застенчивости?"]
[45,"Испытывал ли ты чувство, что тебя недостаточно любят в семье?","Испытывал ли ты чувство, что тебя недостаточно любят в семье?","Испытывал ли ты чувство, что тебя недостаточно любят в семье?","Испытывал ли ты чувство, что тебя недостаточно любят в семье?","Испытывал ли ты чувство, что тебя недостаточно любят в семье?","Испытывал ли ты чувство, что тебя недостаточно любят в семье?","Испытывал ли ты чувство, что тебя недостаточно любят в семье?","Испытывал ли ты чувство, что тебя недостаточно любят в семье?","Испытывал ли ты чувство, что тебя недостаточно любят в семье?","Испытывал ли ты чувство, что тебя недостаточно любят в семье?","Испытывал ли ты чувство, что тебя недостаточно любят в семье?","Испытывал ли ты чувство, что тебя недостаточно любят в семье?","Испытывал ли ты чувство, что тебя недостаточно любят в семье?"]
[46,"Твои родители живут отдельно от тебя?","Твои родители живут отдельно от тебя?","Твои родители живут отдельно от тебя?","Твои родители живут отдельно от тебя?","Твои родители живут отдельно от тебя?","Твои родители живут отдельно от тебя?","Твои родители живут отдельно от тебя?","Твои родители живут отдельно от тебя?","Твои родители живут отдельно от тебя?","Твои родители живут отдельно от тебя?","Твои родители живут отдельно от тебя?","Твои родители живут отдельно от тебя?","Твои родители живут отдельно от тебя?"]
[47,"Часто ли ты теряешь уверенность в себе из-за внешнего вида7","Часто ли ты теряешь уверенность в себе из-за внешнего вида7","Часто ли ты теряешь уверенность в себе из-за внешнего вида7","Часто ли ты теряешь уверенность в себе из-за внешнего вида7","Часто ли ты теряешь уверенность в себе из-за внешнего вида7","Часто ли ты теряешь уверенность в себе из-за внешнего вида7","Часто ли ты теряешь уверенность в себе из-за внешнего вида7","Часто ли ты теряешь уверенность в себе из-за внешнего вида7","Часто ли ты теряешь уверенность в себе из-за внешнего вида7","Часто ли ты теряешь уверенность в себе из-за внешнего вида7","Часто ли ты теряешь уверенность в себе из-за внешнего вида7","Часто ли ты теряешь уверенность в себе из-за внешнего вида7","Часто ли ты теряешь уверенность в себе из-за внешнего вида7"]
[48,"Часто ли у тебя бывает веселое и беззаботное настроение?","Часто ли у тебя бывает веселое и беззаботное настроение?","Часто ли у тебя бывает веселое и беззаботное настроение?","Часто ли у тебя бывает веселое и беззаботное настроение?","Часто ли у тебя бывает веселое и беззаботное настроение?","Часто ли у тебя бывает веселое и беззаботное настроение?","Часто ли у тебя бывает веселое и беззаботное настроение?","Часто ли у тебя бывает веселое и беззаботное настроение?","Часто ли у тебя бывает веселое и беззаботное настроение?","Часто ли у тебя бывает веселое и беззаботное настроение?","Часто ли у тебя бывает веселое и беззаботное настроение?","Часто ли у тебя бывает веселое и беззаботное настроение?","Часто ли у тебя бывает веселое и беззаботное настроение?"]
[49,"Ты подвижный человек?","Ты подвижный человек?","Ты подвижный человек?","Ты подвижный человек?","Ты подвижный человек?","Ты подвижный человек?","Ты подвижный человек?","Ты подвижный человек?","Ты подвижный человек?","Ты подвижный человек?","Ты подвижный человек?","Ты подвижный человек?","Ты подвижный человек?"]
[50,"Любят ли тебя твои знакомые, друзья?","Любят ли тебя твои знакомые, друзья?","Любят ли тебя твои знакомые, друзья?","Любят ли тебя твои знакомые, друзья?","Любят ли тебя твои знакомые, друзья?","Любят ли тебя твои знакомые, друзья?","Любят ли тебя твои знакомые, друзья?","Любят ли тебя твои знакомые, друзья?","Любят ли тебя твои знакомые, друзья?","Любят ли тебя твои знакомые, друзья?","Любят ли тебя твои знакомые, друзья?","Любят ли тебя твои знакомые, друзья?","Любят ли тебя твои знакомые, друзья?"]
[51,"Бывает ли, что твои родители тебя не понимают и кажутся тебе чужими?","Бывает ли, что твои родители тебя не понимают и кажутся тебе чужими?","Бывает ли, что твои родители тебя не понимают и кажутся тебе чужими?","Бывает ли, что твои родители тебя не понимают и кажутся тебе чужими?","Бывает ли, что твои родители тебя не понимают и кажутся тебе чужими?","Бывает ли, что твои родители тебя не понимают и кажутся тебе чужими?","Бывает ли, что твои родители тебя не понимают и кажутся тебе чужими?","Бывает ли, что твои родители тебя не понимают и кажутся тебе чужими?","Бывает ли, что твои родители тебя не понимают и кажутся тебе чужими?","Бывает ли, что твои родители тебя не понимают и кажутся тебе чужими?","Бывает ли, что твои родители тебя не понимают и кажутся тебе чужими?","Бывает ли, что твои родители тебя не понимают и кажутся тебе чужими?","Бывает ли, что твои родители тебя не понимают и кажутся тебе чужими?"]
[52,"При неудачах бывает ли у тебя желание убежать куда-нибудь подальше и не возвращаться?","При неудачах бывает ли у тебя желание убежать куда-нибудь подальше и не возвращаться?","При неудачах бывает ли у тебя желание убежать куда-нибудь подальше и не возвращаться?","При неудачах бывает ли у тебя желание убежать куда-нибудь подальше и не возвращаться?","При неудачах бывает ли у тебя желание убежать куда-нибудь подальше и не возвращаться?","При неудачах бывает ли у тебя желание убежать куда-нибудь подальше и не возвращаться?","При неудачах бывает ли у тебя желание убежать куда-нибудь подальше и не возвращаться?","При неудачах бывает ли у тебя желание убежать куда-нибудь подальше и не возвращаться?","При неудачах бывает ли у тебя желание убежать куда-нибудь подальше и не возвращаться?","При неудачах бывает ли у тебя желание убежать куда-нибудь подальше и не возвращаться?","При неудачах бывает ли у тебя желание убежать куда-нибудь подальше и не возвращаться?","При неудачах бывает ли у тебя желание убежать куда-нибудь подальше и не возвращаться?","При неудачах бывает ли у тебя желание убежать куда-нибудь подальше и не возвращаться?"]
[53,"Бывало ли, что кто-то из родителей вызывал у тебя чувство страха?","Бывало ли, что кто-то из родителей вызывал у тебя чувство страха?","Бывало ли, что кто-то из родителей вызывал у тебя чувство страха?","Бывало ли, что кто-то из родителей вызывал у тебя чувство страха?","Бывало ли, что кто-то из родителей вызывал у тебя чувство страха?","Бывало ли, что кто-то из родителей вызывал у тебя чувство страха?","Бывало ли, что кто-то из родителей вызывал у тебя чувство страха?","Бывало ли, что кто-то из родителей вызывал у тебя чувство страха?","Бывало ли, что кто-то из родителей вызывал у тебя чувство страха?","Бывало ли, что кто-то из родителей вызывал у тебя чувство страха?","Бывало ли, что кто-то из родителей вызывал у тебя чувство страха?","Бывало ли, что кто-то из родителей вызывал у тебя чувство страха?","Бывало ли, что кто-то из родителей вызывал у тебя чувство страха?"]
[54,"Критикуют ли родители твой внешний вид?","Критикуют ли родители твой внешний вид?","Критикуют ли родители твой внешний вид?","Критикуют ли родители твой внешний вид?","Критикуют ли родители твой внешний вид?","Критикуют ли родители твой внешний вид?","Критикуют ли родители твой внешний вид?","Критикуют ли родители твой внешний вид?","Критикуют ли родители твой внешний вид?","Критикуют ли родители твой внешний вид?","Критикуют ли родители твой внешний вид?","Критикуют ли родители твой внешний вид?","Критикуют ли родители твой внешний вид?"]
[55,"Завидуешь ли ты иногда счастью других?","Завидуешь ли ты иногда счастью других?","Завидуешь ли ты иногда счастью других?","Завидуешь ли ты иногда счастью других?","Завидуешь ли ты иногда счастью других?","Завидуешь ли ты иногда счастью других?","Завидуешь ли ты иногда счастью других?","Завидуешь ли ты иногда счастью других?","Завидуешь ли ты иногда счастью других?","Завидуешь ли ты иногда счастью других?","Завидуешь ли ты иногда счастью других?","Завидуешь ли ты иногда счастью других?","Завидуешь ли ты иногда счастью других?"]
[56,"Часто ли ты чувствуешь себя одиноким, даже находясь среди людей?","Часто ли ты чувствуешь себя одиноким, даже находясь среди людей?","Часто ли ты чувствуешь себя одиноким, даже находясь среди людей?","Часто ли ты чувствуешь себя одиноким, даже находясь среди людей?","Часто ли ты чувствуешь себя одиноким, даже находясь среди людей?","Часто ли ты чувствуешь себя одиноким, даже находясь среди людей?","Часто ли ты чувствуешь себя одиноким, даже находясь среди людей?","Часто ли ты чувствуешь себя одиноким, даже находясь среди людей?","Часто ли ты чувствуешь себя одиноким, даже находясь среди людей?","Часто ли ты чувствуешь себя одиноким, даже находясь среди людей?","Часто ли ты чувствуешь себя одиноким, даже находясь среди людей?","Часто ли ты чувствуешь себя одиноким, даже находясь среди людей?","Часто ли ты чувствуешь себя одиноким, даже находясь среди людей?"]
[57,"Есть ли люди, которых ты ненавидишь по-настоящему?","Есть ли люди, которых ты ненавидишь по-настоящему?","Есть ли люди, которых ты ненавидишь по-настоящему?","Есть ли люди, которых ты ненавидишь по-настоящему?","Есть ли люди, которых ты ненавидишь по-настоящему?","Есть ли люди, которых ты ненавидишь по-настоящему?","Есть ли люди, которых ты ненавидишь по-настоящему?","Есть ли люди, которых ты ненавидишь по-настоящему?","Есть ли люди, которых ты ненавидишь по-настоящему?","Есть ли люди, которых ты ненавидишь по-настоящему?","Есть ли люди, которых ты ненавидишь по-настоящему?","Есть ли люди, которых ты ненавидишь по-настоящему?","Есть ли люди, которых ты ненавидишь по-настоящему?"]
[58,"Часто ли ты дерешься?","Часто ли ты дерешься?","Часто ли ты дерешься?","Часто ли ты дерешься?","Часто ли ты дерешься?","Часто ли ты дерешься?","Часто ли ты дерешься?","Часто ли ты дерешься?","Часто ли ты дерешься?","Часто ли ты дерешься?","Часто ли ты дерешься?","Часто ли ты дерешься?","Часто ли ты дерешься?"]
[59,"Легко ли ты просишь помощи у другого человека?","Легко ли ты просишь помощи у другого человека?","Легко ли ты просишь помощи у другого человека?","Легко ли ты просишь помощи у другого человека?","Легко ли ты просишь помощи у другого человека?","Легко ли ты просишь помощи у другого человека?","Легко ли ты просишь помощи у другого человека?","Легко ли ты просишь помощи у другого человека?","Легко ли ты просишь помощи у другого человека?","Легко ли ты просишь помощи у другого человека?","Легко ли ты просишь помощи у другого человека?","Легко ли ты просишь помощи у другого человека?","Легко ли ты просишь помощи у другого человека?"]
[60,"Легко ли тебе усидеть на месте?","Легко ли тебе усидеть на месте?","Легко ли тебе усидеть на месте?","Легко ли тебе усидеть на месте?","Легко ли тебе усидеть на месте?","Легко ли тебе усидеть на месте?","Легко ли тебе усидеть на месте?","Легко ли тебе усидеть на месте?","Легко ли тебе усидеть на месте?","Легко ли тебе усидеть на месте?","Легко ли тебе усидеть на месте?","Легко ли тебе усидеть на месте?","Легко ли тебе усидеть на месте?"]
[61,"Ты охотно отвечаешь у доски в школе?","Ты охотно отвечаешь у доски в школе?","Ты охотно отвечаешь у доски в школе?","Ты охотно отвечаешь у доски в школе?","Ты охотно отвечаешь у доски в школе?","Ты охотно отвечаешь у доски в школе?","Ты охотно отвечаешь у доски в школе?","Ты охотно отвечаешь у доски в школе?","Ты охотно отвечаешь у доски в школе?","Ты охотно отвечаешь у доски в школе?","Ты охотно отвечаешь у доски в школе?","Ты охотно отвечаешь у доски в школе?","Ты охотно отвечаешь у доски в школе?"]
[62,"Бывает ли, что ты так расстроен, что долго не можешь уснуть?","Бывает ли, что ты так расстроен, что долго не можешь уснуть?","Бывает ли, что ты так расстроен, что долго не можешь уснуть?","Бывает ли, что ты так расстроен, что долго не можешь уснуть?","Бывает ли, что ты так расстроен, что долго не можешь уснуть?","Бывает ли, что ты так расстроен, что долго не можешь уснуть?","Бывает ли, что ты так расстроен, что долго не можешь уснуть?","Бывает ли, что ты так расстроен, что долго не можешь уснуть?","Бывает ли, что ты так расстроен, что долго не можешь уснуть?","Бывает ли, что ты так расстроен, что долго не можешь уснуть?","Бывает ли, что ты так расстроен, что долго не можешь уснуть?","Бывает ли, что ты так расстроен, что долго не можешь уснуть?","Бывает ли, что ты так расстроен, что долго не можешь уснуть?"]
[63,"Часто ли ты обнаруживал, что твой приятель тебя обманул?","Часто ли ты обнаруживал, что твой приятель тебя обманул?","Часто ли ты обнаруживал, что твой приятель тебя обманул?","Часто ли ты обнаруживал, что твой приятель тебя обманул?","Часто ли ты обнаруживал, что твой приятель тебя обманул?","Часто ли ты обнаруживал, что твой приятель тебя обманул?","Часто ли ты обнаруживал, что твой приятель тебя обманул?","Часто ли ты обнаруживал, что твой приятель тебя обманул?","Часто ли ты обнаруживал, что твой приятель тебя обманул?","Часто ли ты обнаруживал, что твой приятель тебя обманул?","Часто ли ты обнаруживал, что твой приятель тебя обманул?","Часто ли ты обнаруживал, что твой приятель тебя обманул?","Часто ли ты обнаруживал, что твой приятель тебя обманул?"]
[64,"Часто ли ты ругаешься?","Часто ли ты ругаешься?","Часто ли ты ругаешься?","Часто ли ты ругаешься?","Часто ли ты ругаешься?","Часто ли ты ругаешься?","Часто ли ты ругаешься?","Часто ли ты ругаешься?","Часто ли ты ругаешься?","Часто ли ты ругаешься?","Часто ли ты ругаешься?","Часто ли ты ругаешься?","Часто ли ты ругаешься?"]
[65,"Мог бы ты без тренировки управлять парусной лодкой?","Мог бы ты без тренировки управлять парусной лодкой?","Мог бы ты без тренировки управлять парусной лодкой?","Мог бы ты без тренировки управлять парусной лодкой?","Мог бы ты без тренировки управлять парусной лодкой?","Мог бы ты без тренировки управлять парусной лодкой?","Мог бы ты без тренировки управлять парусной лодкой?","Мог бы ты без тренировки управлять парусной лодкой?","Мог бы ты без тренировки управлять парусной лодкой?","Мог бы ты без тренировки управлять парусной лодкой?","Мог бы ты без тренировки управлять парусной лодкой?","Мог бы ты без тренировки управлять парусной лодкой?","Мог бы ты без тренировки управлять парусной лодкой?"]
[66,"Часто ли в вашей семье бывают ссоры?","Часто ли в вашей семье бывают ссоры?","Часто ли в вашей семье бывают ссоры?","Часто ли в вашей семье бывают ссоры?","Часто ли в вашей семье бывают ссоры?","Часто ли в вашей семье бывают ссоры?","Часто ли в вашей семье бывают ссоры?","Часто ли в вашей семье бывают ссоры?","Часто ли в вашей семье бывают ссоры?","Часто ли в вашей семье бывают ссоры?","Часто ли в вашей семье бывают ссоры?","Часто ли в вашей семье бывают ссоры?","Часто ли в вашей семье бывают ссоры?"]
[67,"Является ли один из твоих родителей очень нервным?","Является ли один из твоих родителей очень нервным?","Является ли один из твоих родителей очень нервным?","Является ли один из твоих родителей очень нервным?","Является ли один из твоих родителей очень нервным?","Является ли один из твоих родителей очень нервным?","Является ли один из твоих родителей очень нервным?","Является ли один из твоих родителей очень нервным?","Является ли один из твоих родителей очень нервным?","Является ли один из твоих родителей очень нервным?","Является ли один из твоих родителей очень нервным?","Является ли один из твоих родителей очень нервным?","Является ли один из твоих родителей очень нервным?"]
[68,"Часто ли ты чувствуешь ты себя ничтожным?","Часто ли ты чувствуешь ты себя ничтожным?","Часто ли ты чувствуешь ты себя ничтожным?","Часто ли ты чувствуешь ты себя ничтожным?","Часто ли ты чувствуешь ты себя ничтожным?","Часто ли ты чувствуешь ты себя ничтожным?","Часто ли ты чувствуешь ты себя ничтожным?","Часто ли ты чувствуешь ты себя ничтожным?","Часто ли ты чувствуешь ты себя ничтожным?","Часто ли ты чувствуешь ты себя ничтожным?","Часто ли ты чувствуешь ты себя ничтожным?","Часто ли ты чувствуешь ты себя ничтожным?","Часто ли ты чувствуешь ты себя ничтожным?"]
[69,"Беспокоит ли тебя ощущение, что люди могут угадать твои мысли?","Беспокоит ли тебя ощущение, что люди могут угадать твои мысли?","Беспокоит ли тебя ощущение, что люди могут угадать твои мысли?","Беспокоит ли тебя ощущение, что люди могут угадать твои мысли?","Беспокоит ли тебя ощущение, что люди могут угадать твои мысли?","Беспокоит ли тебя ощущение, что люди могут угадать твои мысли?","Беспокоит ли тебя ощущение, что люди могут угадать твои мысли?","Беспокоит ли тебя ощущение, что люди могут угадать твои мысли?","Беспокоит ли тебя ощущение, что люди могут угадать твои мысли?","Беспокоит ли тебя ощущение, что люди могут угадать твои мысли?","Беспокоит ли тебя ощущение, что люди могут угадать твои мысли?","Беспокоит ли тебя ощущение, что люди могут угадать твои мысли?","Беспокоит ли тебя ощущение, что люди могут угадать твои мысли?"]
[70,"Ты всегда делаешь все по-своему?","Ты всегда делаешь все по-своему?","Ты всегда делаешь все по-своему?","Ты всегда делаешь все по-своему?","Ты всегда делаешь все по-своему?","Ты всегда делаешь все по-своему?","Ты всегда делаешь все по-своему?","Ты всегда делаешь все по-своему?","Ты всегда делаешь все по-своему?","Ты всегда делаешь все по-своему?","Ты всегда делаешь все по-своему?","Ты всегда делаешь все по-своему?","Ты всегда делаешь все по-своему?"]
[71,"Бывают ли твои родители чересчур строги к тебе?","Бывают ли твои родители чересчур строги к тебе?","Бывают ли твои родители чересчур строги к тебе?","Бывают ли твои родители чересчур строги к тебе?","Бывают ли твои родители чересчур строги к тебе?","Бывают ли твои родители чересчур строги к тебе?","Бывают ли твои родители чересчур строги к тебе?","Бывают ли твои родители чересчур строги к тебе?","Бывают ли твои родители чересчур строги к тебе?","Бывают ли твои родители чересчур строги к тебе?","Бывают ли твои родители чересчур строги к тебе?","Бывают ли твои родители чересчур строги к тебе?","Бывают ли твои родители чересчур строги к тебе?"]
[72,"Стесняешься ли ты в обществе малознакомых людей?","Стесняешься ли ты в обществе малознакомых людей?","Стесняешься ли ты в обществе малознакомых людей?","Стесняешься ли ты в обществе малознакомых людей?","Стесняешься ли ты в обществе малознакомых людей?","Стесняешься ли ты в обществе малознакомых людей?","Стесняешься ли ты в обществе малознакомых людей?","Стесняешься ли ты в обществе малознакомых людей?","Стесняешься ли ты в обществе малознакомых людей?","Стесняешься ли ты в обществе малознакомых людей?","Стесняешься ли ты в обществе малознакомых людей?","Стесняешься ли ты в обществе малознакомых людей?","Стесняешься ли ты в обществе малознакомых людей?"]
[73,"Часто ли тебе кажется, что ты чем-то хуже других?","Часто ли тебе кажется, что ты чем-то хуже других?","Часто ли тебе кажется, что ты чем-то хуже других?","Часто ли тебе кажется, что ты чем-то хуже других?","Часто ли тебе кажется, что ты чем-то хуже других?","Часто ли тебе кажется, что ты чем-то хуже других?","Часто ли тебе кажется, что ты чем-то хуже других?","Часто ли тебе кажется, что ты чем-то хуже других?","Часто ли тебе кажется, что ты чем-то хуже других?","Часто ли тебе кажется, что ты чем-то хуже других?","Часто ли тебе кажется, что ты чем-то хуже других?","Часто ли тебе кажется, что ты чем-то хуже других?","Часто ли тебе кажется, что ты чем-то хуже других?"]
[74,"Легко ли тебе удается поднять настроение друзей?","Легко ли тебе удается поднять настроение друзей?","Легко ли тебе удается поднять настроение друзей?","Легко ли тебе удается поднять настроение друзей?","Легко ли тебе удается поднять настроение друзей?","Легко ли тебе удается поднять настроение друзей?","Легко ли тебе удается поднять настроение друзей?","Легко ли тебе удается поднять настроение друзей?","Легко ли тебе удается поднять настроение друзей?","Легко ли тебе удается поднять настроение друзей?","Легко ли тебе удается поднять настроение друзей?","Легко ли тебе удается поднять настроение друзей?","Легко ли тебе удается поднять настроение друзей?"]

{"sheet":"Результаты","index":1,"n_rows":85,"n_cols":5,"rows_kept":85,"cut":false,"hidden":true,"merged":[]}
["Показатель","№ вопроса","Резальтат"]
["Отношения в семье","5+, 6+, 21+, 22-, 25+, 28+, 29+, 37+, 38+,39+, 45+,46+, 53+, 54+, 66+, 67+, 71+",{"$f":"SUM(#REF!,#REF!,#REF!,#REF!,#REF!,#REF!,#REF!,#REF!,#REF!,#REF!,#REF!,#REF!,#REF!,#REF!,#REF!)","v":{"$error":"#REF!"}},{"$f":"SUM(E16,E17,E32,E33,E36,E39,E40,E48,E49,E50,E56,E57,E64,E65,E77,E78,E82)","v":0}]
["Агрессивность","13+, 14+, 19+, 20+, 35+, 36+, 42+, 57+, 58+, 64+, 65+",{"$f":"SUM(#REF!,#REF!,#REF!,#REF!,#REF!,#REF!,#REF!,#REF!,#REF!,#REF!,#REF!)","v":{"$error":"#REF!"}},{"$f":"SUM(E24,E25,E30,E31,E46,E47,E53,E68,E69,E75,E76)","v":0}]
["Недоверие к людям","1-, 2+, 3-, 4+, 15+, 16+, 17-, 18+, 34+, 43+, 44+, 59-, 63+, 72+",{"$f":"SUM(#REF!,#REF!,#REF!,#REF!,#REF!,#REF!,#REF!,#REF!,#REF!,#REF!,#REF!,#REF!,#REF!,#REF!)","v":{"$error":"#REF!"}},{"$f":"SUM(E12,E13,E14,E15,E26,E27,E28,E29,E45,E54,E55,E70,E74,E83)","v":0}]
["Акцентуации:"]
["*гипертимная","48+, 49+,60-, 74+",{"$f":"SUM(#REF!,#REF!,#REF!,#REF!)","v":{"$error":"#REF!"}},{"$f":"SUM(E20,E21,E61,E72)","v":0}]
["*истероидная","9+, 10+, 50+, 61+",{"$f":"SUM(#REF!,#REF!,#REF!,#REF!)","v":{"$error":"#REF!"}},{"$f":"SUM(E60,E61,E72,E86)","v":0}]
["*шизоидная","26+, 27+, 51+, 70+",{"$f":"SUM(#REF!,#REF!,#REF!,#REF!)","v":{"$error":"#REF!"}},{"$f":"SUM(E37,E38,E62,E81)","v":0}]
["*эмоционально-лабильная","11+, 12+, 52+, 62+",{"$f":"SUM(#REF!,#REF!,#REF!,#REF!)","v":{"$error":"#REF!"}},{"$f":"SUM(E22,E23,E63,E73)","v":0}]
["Неувереность в себе","7+, 8+, 23-, 24+, 30+, 31+, 32+, 33+, 40+, 41+, 47+, 55+, 56+, 68+, 69+, 73+",{"$f":"SUM(#REF!,#REF!,#REF!,#REF!,#REF!,#REF!,#REF!,#REF!,#REF!,#REF!,#REF!,#REF!,#REF!,#REF!,#REF!,#REF!)","v":{"$error":"#REF!"}},{"$f":"SUM(E18,E19,E34,E35,E41,E42,E43,E44,E51,E52,E58,E66,E67,E79,E80,E84)","v":0}]
[]
[null,null,null,1,{"$f":"IF('Методика первичной диагностики'!O9=\"-\",1,)","v":0}]
[null,null,null,2,{"$f":"IF('Методика первичной диагностики'!O10=\"+\",1,)","v":0}]
[null,null,null,3,{"$f":"IF('Методика первичной диагностики'!O11=\"-\",1,)","v":0}]
[null,null,null,4,{"$f":"IF('Методика первичной диагностики'!O12=\"+\",1,)","v":0}]
[null,null,null,5,{"$f":"IF('Методика первичной диагностики'!O13=\"+\",1,)","v":0}]
[null,null,null,6,{"$f":"IF('Методика первичной диагностики'!O14=\"+\",1,)","v":0}]
[null,null,null,7,{"$f":"IF('Методика первичной диагностики'!O15=\"+\",1,)","v":0}]
[null,null,null,8,{"$f":"IF('Методика первичной диагностики'!O16=\"+\",1,)","v":0}]
[null,null,null,9,{"$f":"IF('Методика первичной диагностики'!O17=\"+\",1,)","v":0}]
[null,null,null,10,{"$f":"IF('Методика первичной диагностики'!O18=\"+\",1,)","v":0}]
[null,null,null,11,{"$f":"IF('Методика первичной диагностики'!O19=\"+\",1,)","v":0}]
[null,null,null,12,{"$f":"IF('Методика первичной диагностики'!O20=\"+\",1,)","v":0}]
[null,null,null,13,{"$f":"IF('Методика первичной диагностики'!O21=\"+\",1,)","v":0}]
[null,null,null,14,{"$f":"IF('Методика первичной диагностики'!O22=\"+\",1,)","v":0}]
[null,null,null,15,{"$f":"IF('Методика первичной диагностики'!O23=\"+\",1,)","v":0}]
[null,null,null,16,{"$f":"IF('Методика первичной диагностики'!O24=\"+\",1,)","v":0}]
[null,null,null,17,{"$f":"IF('Методика первичной диагностики'!O25=\"-\",1,)","v":0}]
[null,null,null,18,{"$f":"IF('Методика первичной диагностики'!O26=\"+\",1,)","v":0}]
[null,null,null,19,{"$f":"IF('Методика первичной диагностики'!O27=\"+\",1,)","v":0}]
[null,null,null,20,{"$f":"IF('Методика первичной диагностики'!O28=\"+\",1,)","v":0}]
[null,null,null,21,{"$f":"IF('Методика первичной диагностики'!O29=\"+\",1,)","v":0}]
[null,null,null,22,{"$f":"IF('Методика первичной диагностики'!O30=\"-\",1,)","v":0}]
[null,null,null,23,{"$f":"IF('Методика первичной диагностики'!O31=\"-\",1,)","v":0}]
[null,null,null,24,{"$f":"IF('Методика первичной диагностики'!O32=\"+\",1,)","v":0}]
[null,null,null,25,{"$f":"IF('Методика первичной диагностики'!O33=\"+\",1,)","v":0}]
[null,null,null,26,{"$f":"IF('Методика первичной диагностики'!O34=\"+\",1,)","v":0}]
[null,null,null,27,{"$f":"IF('Методика первичной диагностики'!O35=\"+\",1,)","v":0}]
[null,null,null,28,{"$f":"IF('Методика первичной диагностики'!O36=\"+\",1,)","v":0}]
[null,null,null,29,{"$f":"IF('Методика первичной диагностики'!O37=\"+\",1,)","v":0}]
[null,null,null,30,{"$f":"IF('Методика первичной диагностики'!O38=\"+\",1,)","v":0}]
[null,null,null,31,{"$f":"IF('Методика первичной диагностики'!O39=\"+\",1,)","v":0}]
[null,null,null,32,{"$f":"IF('Методика первичной диагностики'!O40=\"+\",1,)","v":0}]
[null,null,null,33,{"$f":"IF('Методика первичной диагностики'!O41=\"+\",1,)","v":0}]
[null,null,null,34,{"$f":"IF('Методика первичной диагностики'!O42=\"+\",1,)","v":0}]
[null,null,null,35,{"$f":"IF('Методика первичной диагностики'!O43=\"+\",1,)","v":0}]
[null,null,null,36,{"$f":"IF('Методика первичной диагностики'!O44=\"+\",1,)","v":0}]
[null,null,null,37,{"$f":"IF('Методика первичной диагностики'!O45=\"+\",1,)","v":0}]
[null,null,null,38,{"$f":"IF('Методика первичной диагностики'!O46=\"+\",1,)","v":0}]
[null,null,null,39,{"$f":"IF('Методика первичной диагностики'!O47=\"+\",1,)","v":0}]
[null,null,null,40,{"$f":"IF('Методика первичной диагностики'!O48=\"+\",1,)","v":0}]
[null,null,null,41,{"$f":"IF('Методика первичной диагностики'!O49=\"+\",1,)","v":0}]
[null,null,null,42,{"$f":"IF('Методика первичной диагностики'!O50=\"+\",1,)","v":0}]
[null,null,null,43,{"$f":"IF('Методика первичной диагностики'!O51=\"+\",1,)","v":0}]
[null,null,null,44,{"$f":"IF('Методика первичной диагностики'!O52=\"+\",1,)","v":0}]
[null,null,null,45,{"$f":"IF('Методика первичной диагностики'!O53=\"+\",1,)","v":0}]
[null,null,null,46,{"$f":"IF('Методика первичной диагностики'!O54=\"+\",1,)","v":0}]
[null,null,null,47,{"$f":"IF('Методика первичной диагностики'!O55=\"+\",1,)","v":0}]
[null,null,null,48,{"$f":"IF('Методика первичной диагностики'!O56=\"+\",1,)","v":0}]
[null,null,null,49,{"$f":"IF('Методика первичной диагностики'!O57=\"+\",1,)","v":0}]
[null,null,null,50,{"$f":"IF('Методика первичной диагностики'!O58=\"+\",1,)","v":0}]
[null,null,null,51,{"$f":"IF('Методика первичной диагностики'!O59=\"+\",1,)","v":0}]
[null,null,null,52,{"$f":"IF('Методика первичной диагностики'!O60=\"+\",1,)","v":0}]
[null,null,null,53,{"$f":"IF('Методика первичной диагностики'!O61=\"+\",1,)","v":0}]
[null,null,null,54,{"$f":"IF('Методика первичной диагностики'!O62=\"+\",1,)","v":0}]
[null,null,null,55,{"$f":"IF('Методика первичной диагностики'!O63=\"+\",1,)","v":0}]
[null,null,null,56,{"$f":"IF('Методика первичной диагностики'!O64=\"+\",1,)","v":0}]
[null,null,null,57,{"$f":"IF('Методика первичной диагностики'!O65=\"+\",1,)","v":0}]
[null,null,null,58,{"$f":"IF('Методика первичной диагностики'!O66=\"+\",1,)","v":0}]
[null,null,null,59,{"$f":"IF('Методика первичной диагностики'!O67=\"-\",1,)","v":0}]
[null,null,null,60,{"$f":"IF('Методика первичной диагностики'!O68=\"-\",1,)","v":0}]
[null,null,null,61,{"$f":"IF('Методика первичной диагностики'!O69=\"+\",1,)","v":0}]
[null,null,null,62,{"$f":"IF('Методика первичной диагностики'!O70=\"+\",1,)","v":0}]
[null,null,null,63,{"$f":"IF('Методика первичной диагностики'!O71=\"+\",1,)","v":0}]
[null,null,null,64,{"$f":"IF('Методика первичной диагностики'!O72=\"+\",1,)","v":0}]
[null,null,null,65,{"$f":"IF('Методика первичной диагностики'!O73=\"+\",1,)","v":0}]
[null,null,null,66,{"$f":"IF('Методика первичной диагностики'!O74=\"+\",1,)","v":0}]
[null,null,null,67,{"$f":"IF('Методика первичной диагностики'!O75=\"+\",1,)","v":0}]
[null,null,null,68,{"$f":"IF('Методика первичной диагностики'!O76=\"+\",1,)","v":0}]
[null,null,null,69,{"$f":"IF('Методика первичной диагностики'!O77=\"+\",1,)","v":0}]
[null,null,null,70,{"$f":"IF('Методика первичной диагностики'!O78=\"+\",1,)","v":0}]
[null,null,null,71,{"$f":"IF('Методика первичной диагностики'!O79=\"+\",1,)","v":0}]
[null,null,null,72,{"$f":"IF('Методика первичной диагностики'!O80=\"+\",1,)","v":0}]
[null,null,null,73,{"$f":"IF('Методика первичной диагностики'!O81=\"+\",1,)","v":0}]
[null,null,null,74,{"$f":"IF('Методика первичной диагностики'!O82=\"+\",1,)","v":0}]

{"sheet":"Печать","index":2,"n_rows":42,"n_cols":8,"rows_kept":42,"cut":false,"hidden":false,"merged":[[0,0,0,8],[2,1,2,8],[3,1,3,5],[3,7,3,8],[5,0,5,4],[5,6,5,8],[6,0,6,4],[6,6,6,8],[7,0,7,4],[7,6,7,8],[8,0,8,4],[8,6,8,8],[17,0,17,8],[9,0,9,8],[10,0,10,4],[10,6,10,8],[11,0,11,4],[11,6,11,8],[12,0,12,4],[12,6,12,8],[13,0,13,4],[13,6,13,8],[14,0,14,4],[14,6,14,8],[16,0,16,8],[29,0,29,8],[18,0,18,8],[19,0,19,8],[20,0,20,8],[21,0,21,8],[22,0,22,8],[23,0,23,8],[24,0,24,8],[25,0,25,8],[26,0,26,8],[27,0,27,8],[28,0,28,8],[41,0,42,8],[30,0,30,8],[31,0,31,8],[32,0,32,8],[33,0,33,8],[34,0,34,8],[35,0,35,8],[36,0,36,8],[37,0,37,8],[38,0,38,8],[39,0,39,8],[40,0,40,8]]}
["Методика первичной диагностики и выявления детей группы риска"]
[]
["ФИО",{"$f":"PROPER('Методика первичной диагностики'!D2)","v":""}]
["Класс",{"$f":"'Методика первичной диагностики'!M2","v":0},null,null,null,null,"Дата",{"$f":"TODAY()","v":"2018-02-28"}]
[]
["Шкала",null,null,null,null,"Баллы","Уровень"]
[{"$f":"Результаты!A2","v":"Отношения в семье"},null,null,null,null,{"$f":"CONCATENATE(Результаты!D2,\" / 17\")","v":"0 / 17"},{"$f":"IF(Результаты!D2>=8,\"Группа риска\",\"-\")","v":"-"}]
[{"$f":"Результаты!A3","v":"Агрессивность"},null,null,null,null,{"$f":"CONCATENATE(Результаты!D3,\" / 11\")","v":"0 / 11"},{"$f":"IF(Результаты!D3>=6,\"Группа риска\",\"-\")","v":"-"}]
[{"$f":"Результаты!A4","v":"Недоверие к людям"},null,null,null,null,{"$f":"CONCATENATE(Результаты!D4,\" / 14\")","v":"0 / 14"},{"$f":"IF(Результаты!D4>=7,\"Группа риска\",\"-\")","v":"-"}]
[{"$f":"Результаты!A5","v":"Акцентуации:"}]
[{"$f":"Результаты!A6","v":"*гипертимная"},null,null,null,null,{"$f":"CONCATENATE(Результаты!D6,\" / 4\")","v":"0 / 4"},{"$f":"IF(Результаты!D6>=3,\"Группа риска\",\"-\")","v":"-"}]
[{"$f":"Результаты!A7","v":"*истероидная"},null,null,null,null,{"$f":"CONCATENATE(Результаты!D7,\" / 4\")","v":"0 / 4"},{"$f":"IF(Результаты!D7>=3,\"Группа риска\",\"-\")","v":"-"}]
[{"$f":"Результаты!A8","v":"*шизоидная"},null,null,null,null,{"$f":"CONCATENATE(Результаты!D8,\" / 4\")","v":"0 / 4"},{"$f":"IF(Результаты!D8>=3,\"Группа риска\",\"-\")","v":"-"}]
[{"$f":"Результаты!A9","v":"*эмоционально-лабильная"},null,null,null,null,{"$f":"CONCATENATE(Результаты!D9,\" / 4\")","v":"0 / 4"},{"$f":"IF(Результаты!D9>=3,\"Группа риска\",\"-\")","v":"-"}]
[{"$f":"Результаты!A10","v":"Неувереность в себе"},null,null,null,null,{"$f":"CONCATENATE(Результаты!D10,\" / 16\")","v":"0 / 16"},{"$f":"IF(Результаты!D10>=8,\"Группа риска\",\"-\")","v":"-"}]
[]
[]
[]
[]
[]
[]
[]
[]
[]
[]
[]
[]
[]
[]
[]
[]
[]
[]
[]
[]
[]
[]
[]
[]
[]
[]
["http://eschool.by/psychology/"]

{"sheet":"Печать с пояснениями","index":3,"n_rows":50,"n_cols":8,"rows_kept":50,"cut":false,"hidden":false,"merged":[[0,0,0,8],[2,1,2,5],[4,0,4,4],[4,6,4,8],[5,0,5,4],[5,6,5,8],[2,7,2,8],[35,0,47,8],[48,0,48,8],[6,0,6,4],[6,6,6,8],[7,0,7,4],[7,6,7,8],[8,6,8,8],[8,0,8,4],[49,0,49,8],[9,0,9,8],[10,0,10,4],[10,6,10,8],[11,0,11,4],[11,6,11,8],[12,0,12,4],[21,0,25,8],[15,0,20,8],[12,6,12,8],[13,0,13,4],[13,6,13,8],[26,0,30,8],[31,0,34,8]]}
["Методика первичной диагностики и выявления детей группы риска"]
[]
["ФИО",{"$f":"PROPER('Методика первичной диагностики'!D2)","v":""},null,null,null,null,"Класс",{"$f":"'Методика первичной диагностики'!M2","v":0}]
[]
["Шкала",null,null,null,null,"Баллы","Уровень"]
[{"$f":"Результаты!A2","v":"Отношения в семье"},null,null,null,null,{"$f":"CONCATENATE(Результаты!D2,\" / 17\")","v":"0 / 17"},{"$f":"IF(Результаты!D2>=8,\"Группа риска\",\"-\")","v":"-"}]
[{"$f":"Результаты!A3","v":"Агрессивность"},null,null,null,null,{"$f":"CONCATENATE(Результаты!D3,\" / 11\")","v":"0 / 11"},{"$f":"IF(Результаты!D3>=6,\"Группа риска\",\"-\")","v":"-"}]
[{"$f":"Результаты!A4","v":"Недоверие к людям"},null,null,null,null,{"$f":"CONCATENATE(Результаты!D4,\" / 14\")","v":"0 / 14"},{"$f":"IF(Результаты!D4>=7,\"Группа риска\",\"-\")","v":"-"}]
[{"$f":"Результаты!A10","v":"Неувереность в себе"},null,null,null,null,{"$f":"CONCATENATE(Результаты!D10,\" / 16\")","v":"0 / 16"},{"$f":"IF(Результаты!D10>=8,\"Группа риска\",\"-\")","v":"-"}]
[{"$f":"Результаты!A5","v":"Акцентуации:"}]
[{"$f":"Результаты!A6","v":"*гипертимная"},null,null,null,null,{"$f":"CONCATENATE(Результаты!D6,\" / 4\")","v":"0 / 4"},{"$f":"IF(Результаты!D6>=3,\"Группа риска\",\"-\")","v":"-"}]
[{"$f":"Результаты!A7","v":"*истероидная"},null,null,null,null,{"$f":"CONCATENATE(Результаты!D7,\" / 4\")","v":"0 / 4"},{"$f":"IF(Результаты!D7>=3,\"Группа риска\",\"-\")","v":"-"}]
[{"$f":"Результаты!A8","v":"*шизоидная"},null,null,null,null,{"$f":"CONCATENATE(Результаты!D8,\" / 4\")","v":"0 / 4"},{"$f":"IF(Результаты!D8>=3,\"Группа риска\",\"-\")","v":"-"}]
[{"$f":"Результаты!A9","v":"*эмоционально-лабильная"},null,null,null,null,{"$f":"CONCATENATE(Результаты!D9,\" / 4\")","v":"0 / 4"},{"$f":"IF(Результаты!D9>=3,\"Группа риска\",\"-\")","v":"-"}]
[]
["Отношения в семье\nВысокие баллы по данной шкале опросника свидетельствует о нарушении внутрисемейных отношений, которое может быть обусловлено:\nнапряженной ситуацией в семье; неприязнью; ограничениями и требованиями дисциплины без чувства родительской любви; страхом перед родителями и т.д.\nКогда напряжение, вызванное неудовлетворенностью отношениями в семье, продолжается слишком долго, оно начинает оказывать сильное разрушающее воздействие на здоровье детей и подростков."]
[]
[]
[]
[]
[]
["Агрессивность\nВысокие баллы по этой шкале свидетельствуют о повышенной враждебности, задиристости, грубости. Агрессия может выражаться и в скрытых формах – недоброжелательности и озлобленности.\nПовышенная агрессивность часто сопровождается повышенной склонностью к риску и является неотьемлемой чертой характера детей и подростков группы риска."]
[]
[]
[]
[]
["Недоверие к людям.\nВысокие баллы по этой шкале говорят о сильно выраженном недоверии к окружающим людям, подозрительности, враждебности. Такие дети и подростки часто бывают пассивными и застенчивыми в общении со сверстниками из-за боязни быть отвергнутыми. Обычно это сопровождается коммуникативной некомпетентностью, неумением устанавливать дружеские взаимоотношения с другими людьми."]
[]
[]
[]
[]
["Неуверенность в себе.\nВысокие баллы по этой шкале свидетельствуют о высокой тревожности, неуверенности личности в себе, возможно, о наличии комплекса неполноценности, низкой самооценки. Эти качества личности также являются благодатной почвой для различных расстройств в поведении, а дети и подростки, имеющие высокие оценки по этой шкале, могут быть отнесены к группе риска."]
[]
[]
[]
["Акцентуации характера.\nК группе риска относят следующие типы акцентуации характера.\nГипертимный тип. Отличается почти всегда хорошим настроением, имеет высокий тонус, энергичен, активен, проявляет стремление быть лидером, неустойчив в интересах, недостаточно разборчив в знакомствах, не любит однообразия, дисциплины, монотонной работы, оптимистичен, переоценивает свои возможности, бурно реагирует на события, раздражителен.\nИстероидный тип. Проявляет повышенную любовь к самому себе, жажду внимания со стороны, потребность в восхищении, сочувствии со стороны окружающих людей, старается показать себя в лучшем свете, демонстративен в поведении, претендует на исключительное положение среди сверстников, непостоянен и ненадежен в человеческих отношениях.\nШизоидный тип. Характеризуется замкнутостью и неумением понимать состояние других людей, испытывает трудности в установлении нормальных отношений с людьми, часто уходит в себя, в свой недоступный другим людям внутренний мир, в мир фантазий и грез.\nЭмоционально-лабильный тип. Характеризуется крайней непредсказуемостью настроения. Сон, аппетит, работоспособность и общительность зависят от настроения. Высокочувствителен к отношениям людей."]
[]
[]
[]
[]
[]
[]
[]
[]
[]
[]
[]
[]
[{"$f":"TODAY()","v":"2018-02-28"}]
["http://eschool.by/psychology/"]